Workbook

Sheet Лист1
A1: Школа | C1: ГБОУ "Маскаринская школа- интернат для детей с ограниченными возможностями здоровья" | F1: Утвердил: | G1: должность | H1: директор
A2: Типовое примерное меню приготавливаемых блюд | G2: фамилия | H2: Сабитов Ш. Н.
A3: Возрастная категория | E3: 7-11 лет | G3: дата | H3: 1 | I3: 9 | J3: 2025
H4: день | I4: месяц | J4: год
A5: Неделя | B5: День недели | C5: Прием пищи | D5: Раздел меню | E5: Блюда | F5: Вес блюда, г | G5: Белки | H5: Жиры | I5: Углеводы | J5: Калорийность | K5: № рецептуры | L5: Цена
A6: 1 | B6: 1 | C6: Завтрак | D6: гор.блюдо | E6: Каша геркулес мол. | F6: 200/10 | G6: 9.7 | H6: 8.3 | I6: 36.8 | J6: 212 | K6: 23
D8: гор.напиток | E8: Какао с мол. | F8: 200 | G8: 4.62 | H8: 4.02 | I8: 43.8 | J8: 135 | K8: 63
D9: хлеб | E9: Хлеб пшеничной | F9: 120 | G9: 3.1 | H9: 0.2 | I9: 20.1 | J9: 94.7 | K9: 37
D10: фрукты | E10: Апельсин | F10: 100 | G10: 1.4 | H10: 0.3 | I10: 8.1 | J10: 36 | K10: 61
D11: масло слив. | E11: Масло сливочное | F11: 10 | G11: 0.4 | H11: 62.5 | I11: 0.8 | J11: 105 | K11: 50
D13: итого | F13: =SUM(F6:F12) -> 430 | G13: =SUM(G6:G12) -> 19.22 | H13: =SUM(H6:H12) -> 75.32 | I13: =SUM(I6:I12) -> 109.6 | J13: =SUM(J6:J12) -> 582.7 | L13: =SUM(L6:L12) -> 0
A14: =A6 -> 1 | B14: =B6 -> 1 | C14: Завтрак 2 | D14: фрукты | E14: Банан | F14: 100 | G14: 1.4 | H14: 0.3 | I14: 12.1 | J14: 96.0 | K14: 62
D15: напиток | E15: Компот из смеси с/ф | F15: 200 | G15: 4 | H15: 0.06 | I15: 35.2 | J15: 110 | K15: 53
D16: хлеб бел. | E16: Хлеб пшеничный | F16: 160 | G16: 3.1 | H16: 0.2 | I16: 20.1 | J16: 378.8 | K16: 37
D17: кондит.изд. | E17: Булочка домашняя | F17: 80 | G17: 2.7 | H17: 6 | I17: 20.1 | J17: 99.8 | K17: 73
D18: итого | F18: =SUM(F14:F17) -> 540 | G18: =SUM(G14:G17) -> 11.2 | H18: =SUM(H14:H17) -> 6.56 | I18: =SUM(I14:I17) -> 87.5 | J18: =SUM(J14:J17) -> 684.6 | L18: =SUM(L14:L23) -> 0
A19: =A6 -> 1 | B19: =B6 -> 1 | C19: Обед | D19: закуска | E19: Салат из свеклы | F19: 100 | G19: 1.8 | H19: 10 | I19: 10 | J19: 94.2 | K19: 33
D20: 1 блюдо | E20: Суп горох к/м | F20: 250 | G20: 9.2 | H20: 7.7 | I20: 16.3 | J20: 330.2 | K20: 7
D21: 2 блюдо | E21: Картофельное пюре | F21: 200/10 | G21: 4.9 | H21: 7.2 | I21: 34 | J21: 207 | K21: 17
D22: гарнир | E22: Гуляш из говядины | F22: 100 | G22: 10 | H22: 15.3 | I22: 5.5 | J22: 132.4 | K22: 25
D23: напиток | E23: Сок | F23: 200 | G23: 0.8 | H23: 0 | I23: 23 | J23: 94 | K23: 57
D24: хлеб бел.
D25: хлеб черн. | E25: Хлеб "Дарницкий" | F25: 80 | G25: 2.6 | H25: 0.4 | I25: 17 | J25: 164.8 | K25: 36
D28: итого | F28: =SUM(F19:F27) -> 730 | G28: =SUM(G19:G27) -> 29.3 | H28: =SUM(H19:H27) -> 40.6 | I28: =SUM(I19:I27) -> 105.8 | J28: =SUM(J19:J27) -> 1022.6 | L28: =SUM(L25:L33) -> 0
A29: =A6 -> 1 | B29: =B6 -> 1 | C29: Полдник | D29: кисломол.
D30: фрукты
D33: итого | F33: =SUM(F29:F32) -> 0 | G33: =SUM(G29:G32) -> 0 | H33: =SUM(H29:H32) -> 0 | I33: =SUM(I29:I32) -> 0 | J33: =SUM(J29:J32) -> 0 | L33: =SUM(L26:L32) -> 0
A34: =A6 -> 1 | B34: =B6 -> 1 | C34: Ужин | D34: хлеб черн. | E34: Хлеб "Дарницкий" | F34: 80 | G34: 2.6 | H34: 0.4 | I34: 17 | J34: 164.8 | K34: 36
D35: масло слив. | E35: Масло сливочное | F35: 10 | G35: 0.4 | H35: 62.5 | I35: 0.8 | J35: 105 | K35: 50
D36: гарнир | E36: Рыба запеченная | F36: 100 | G36: 13.7 | H36: 6.2 | I36: 4.4 | J36: 153 | K36: 72
D37: 2 блюдо | E37: Каша рис. мол. | F37: 200 | G37: 5.8 | H37: 9.2 | I37: 42.6 | J37: 277.5 | K37: 21
D38: гор.напиток | E38: Чай слад. | F38: 200 | G38: 0.1 | H38: 0.02 | I38: 5.11 | J38: 39.9 | K38: 70
D40: итого | F40: =SUM(F34:F39) -> 590 | G40: =SUM(G34:G39) -> 22.6 | H40: =SUM(H34:H39) -> 78.32 | I40: =SUM(I34:I39) -> 69.91 | J40: =SUM(J34:J39) -> 740.2 | L40: =SUM(L34:L42) -> 0
A41: =A6 -> 1 | B41: =B6 -> 1 | C41: Ужин 2 | D41: кисломол. | E41: Ряженка | F41: 200 | G41: 12 | H41: 2 | I41: 8.4 | J41: 134 | K41: 58
D42: фрукты | E42: Яблоки св. | F42: 100 | G42: 0.6 | H42: 0.6 | I42: 14.3 | J42: 68.6 | K42: 60
D43: напиток
D47: итого | F47: =SUM(F41:F46) -> 300 | G47: =SUM(G41:G46) -> 12.6 | H47: =SUM(H41:H46) -> 2.6 | I47: =SUM(I41:I46) -> 22.7 | J47: =SUM(J41:J46) -> 202.6 | L47: =SUM(L41:L49) -> 0
A48: =A6 -> 1 | B48: =B6 -> 1 | C48: Итого за день: | F48: =F13+F18+F28+F33+F40+F47 -> 2590 | G48: 95.12 | H48: =H13+H18+H28+H33+H40+H47 -> 203.4 | I48: 400.3 | J48: 3422.1 | L48: =L13+L18+L28+L33+L40+L47 -> 0
A49: 1 | B49: 2 | C49: Завтрак | D49: гор.блюдо | E49: Каша манная мол. | F49: 200/10 | G49: 6 | H49: 5 | I49: 30.8 | J49: 200 | K49: 20
D50: гор.напиток | E50: Чай слад. | F50: 200 | G50: 0.1 | H50: 0 | I50: 9.9 | J50: 21.14 | K50: 70
D51: хлеб | E51: Хлеб пшеничный | F51: 120 | G51: 3.1 | H51: 0.2 | I51: 20.1 | J51: 284.1 | K51: 37
D52: масло слив. | E52: Масло слив. | F52: 10 | G52: 0.4 | H52: 62.5 | I52: 0.8 | J52: 105 | K52: 50
D53: сыр | E53: Сыр | F53: 24 | G53: 4.3 | H53: 5.4 | I53: 0 | J53: 67.4 | K53: 48
D54: фрукты | E54: Апельсин | F54: 100 | G54: 1.4 | H54: 0.3 | I54: 8.1 | J54: 36 | K54: 61
D56: итого | F56: =SUM(F50:F55) -> 454 | G56: =SUM(G49:G55) -> 15.3 | H56: =SUM(H49:H55) -> 10.9 | I56: =SUM(I49:I55) -> 69.7 | J56: 732.4 | K56: =SUM(K49:K55) -> 286 | L56: =SUM(L49:L55) -> 0
A57: =A49 -> 1 | B57: =B49 -> 2 | C57: Завтрак 2 | D57: фрукты | E57: Банан | F57: 100 | G57: 1.4 | H57: 0.3 | I57: 12.1 | J57: 96 | K57: 62
D58: напиток | E58: Кофейный напиток из цикория с мол | F58: 200 | G58: 4.32 | H58: 4.6 | I58: 9.6 | J58: 135 | K58: 54
D59: хлеб бел. | E59: Хлеб пшеничный | F59: 160 | G59: 3.1 | H59: 0.2 | I59: 20.1 | J59: 378.8 | K59: 37
E60: Яйцо вареное | F60: 1 | G60: 5.1 | H60: 4.6 | I60: 0.3 | J60: 63 | K60: 49
D61: кондит.изд. | E61: Печенье | F61: 30 | G61: 3 | H61: 1.9 | I61: 20.8 | J61: 166.8 | K61: 47
D62: итого | F62: =SUM(F57:F61) -> 491 | G62: =SUM(G57:G61) -> 16.92 | H62: =SUM(H57:H61) -> 11.6 | I62: =SUM(I57:I61) -> 62.9 | J62: =SUM(J57:J61) -> 839.6 | L62: =SUM(L57:L67) -> 
A63: =A49 -> 1 | B63: =B49 -> 2 | C63: Обед | D63: закуска
D64: 1 блюдо | E64: Суп лапша домашняя к/м. | F64: 250 | G64: 4.22 | H64: 3.95 | I64: 22.66 | J64: 252 | K64: 5
D65: 2 блюдо | E65: Овощное рагу с мясом говяд. | F65: 200 | G65: 3.46 | H65: 6.26 | I65: 9.98 | J65: 310 | K65: 10
D66: гарнир
D67: напиток | E67: Компот из смеси сухофруктов | F67: 200 | G67: 4 | H67: 0.06 | I67: 35.2 | J67: 110 | K67: 53
D68: хлеб бел.
D69: хлеб черн. | E69: Хлеб "Дарницкий" | F69: 80 | G69: 2.6 | H69: 0.4 | I69: 17 | J69: 164.8 | K69: 36
D72: итого | F72: =SUM(F63:F71) -> 730 | G72: =SUM(G63:G71) -> 14.28 | H72: =SUM(H63:H71) -> 10.67 | I72: =SUM(I63:I71) -> 84.84 | J72: =SUM(J63:J71) -> 836.8 | L72: =SUM(L69:L77) -> 
A73: =A49 -> 1 | B73: =B49 -> 2 | C73: Полдник | D73: кисломол.
D74: фрукты
D77: итого | F77: =SUM(F73:F76) -> 0 | G77: =SUM(G73:G76) -> 0 | H77: =SUM(H73:H76) -> 0 | J77: =SUM(J73:J76) -> 0 | K77: =SUM(K73:K76) -> 0 | L77: =SUM(L70:L76) -> 
A78: =A49 -> 1 | B78: =B49 -> 2 | C78: Ужин | D78: хлеб черн. | E78: Хлеб "Дарницкий" | F78: 80 | G78: 2.6 | H78: 0.4 | I78: 17 | J78: 164.8 | K78: 36
D79: 2 блюдо | E79: Каша гречнев рассып | F79: 200 | G79: 7 | H79: 5.1 | I79: 34.1 | J79: 200 | K79: 15
D80: гарнир | E80: Рыбные тефтели | F80: 50/50 | G80: 12.7 | H80: 5.2 | I80: 4.4 | J80: 224.6 | K80: 77
D81: гор.напиток | E81: Чай с молоком | F81: 200 | G81: 1.64 | H81: 1.64 | I81: 2.38 | J81: 30 | K81: 52
D82: масло слив. | E82: Масло слив. | F82: 15 | G82: 0.4 | H82: 62.5 | I82: 0.8 | J82: 205 | K82: 50
D84: итого | F84: =SUM(F78:F83) -> 495 | G84: =SUM(G78:G83) -> 24.34 | H84: =SUM(H78:H83) -> 74.84 | I84: =SUM(I78:I83) -> 58.68 | J84: =SUM(J78:J83) -> 824.4 | L84: =SUM(L78:L86) -> 
A85: =A49 -> 1 | B85: =B49 -> 2 | C85: Ужин 2 | D85: кисломол. | E85: Ряженка | F85: 200 | G85: 12 | H85: 2 | I85: 8.4 | J85: 134 | K85: 58
D86: фрукты | E86: Яблоки св. | F86: 150 | G86: 0.6 | H86: 0.6 | I86: 14.3 | J86: 68.6 | K86: 60
D87: напиток
D91: итого | F91: =SUM(F85:F90) -> 350 | G91: =SUM(G85:G90) -> 12.6 | H91: =SUM(H85:H90) -> 2.6 | I91: =SUM(I85:I90) -> 22.7 | J91: =SUM(J85:J90) -> 202.6 | L91: =SUM(L85:L93) -> 
A92: =A49 -> 1 | B92: =B49 -> 2 | C92: Итого за день: | F92: =F56+F62+F72+F77+F84+F91 -> 2520 | G92: =G56+G62+G72+G77+G84+G91 -> 83.44 | H92: =H56+H62+H72+H77+H84+H91 -> 110.61 | I92: =I56+I62+I72+I77+I84+I91 -> 298.82 | J92: =J56+J62+J72+J77+J84+J91 -> 3435.8 | L92: =L56+L62+L72+L77+L84+L91 -> 0
A93: 1 | B93: 3 | C93: Завтрак | D93: гор.блюдо | E93: Омлет | F93: 200/5 | G93: 16.6 | H93: 18.24 | I93: 2.88 | J93: 200 | K93: 19
D94: гор.напиток | E94: Какао с молоком | F94: 200 | G94: 4.62 | H94: 4.02 | I94: 43.8 | J94: 135 | K94: 63
D95: хлеб | E95: Хлеб пшеничный | F95: 120 | G95: 3.1 | H95: 0.2 | I95: 20.1 | J95: 284.1 | K95: 37
D96: масло слив. | E96: Масло слив. | F96: 15 | G96: 0.4 | H96: 62.5 | I96: 0.8 | J96: 205 | K96: 50
D97: фрукты | E97: Апельсин | F97: 100 | G97: 1.4 | H97: 0.3 | I97: 8.1 | J97: 36 | K97: 61
D100: итого | F100: =SUM(F93:F99) -> 435 | G100: =SUM(G93:G99) -> 26.12 | H100: =SUM(H93:H99) -> 85.26 | I100: =SUM(I93:I99) -> 75.68 | J100: =SUM(J93:J99) -> 860.1 | L100: =SUM(L93:L99) -> 0
A101: =A93 -> 1 | B101: =B93 -> 3 | C101: Завтрак 2 | D101: фрукты | E101: Банан | F101: 100 | G101: 1.4 | H101: 0.3 | I101: 12.1 | J101: 96 | K101: 62
E102: Хлеб пшеничный | F102: 160 | G102: 3.1 | H102: 0.2 | I102: 20.1 | J102: 378.8 | K102: 37
E103: Компот из с/ф | F103: 200 | G103: 4 | H103: 0.06 | I103: 35.2 | J103: 110 | K103: 53
E104: Треугольник | F104: 80 | G104: 6.23 | H104: 5.38 | I104: 38.25 | J104: 150 | K104: 42
D105: итого | F105: =SUM(F101:F104) -> 540 | G105: =SUM(G101:G104) -> 14.73 | H105: =SUM(H101:H104) -> 5.94 | I105: =SUM(I101:I104) -> 105.65 | J105: =SUM(J101:J104) -> 734.8 | L105: =SUM(L101:L110) -> 
A106: =A93 -> 1 | B106: =B93 -> 3 | C106: Обед | D106: закуска | E106: Салат морковный | F106: 100 | G106: 1.16 | H106: 8.3 | I106: 14.6 | J106: 98.8 | K106: 35
D107: 1 блюдо | E107: Борщ к/м со сметаной | F107: 250/15 | G107: 8.4 | H107: 10.3 | I107: 13.7 | J107: 105.2 | K107: 2
D108: 2 блюдо | E108: Каша ячневая с мяс говядины | F108: 200/10 | G108: 11.2 | H108: 16.3 | I108: 63.7 | J108: 445.6 | K108: 13
D109: гарнир
D110: напиток | E110: Сок | F110: 200 | G110: 0.8 | H110: 0 | I110: 23 | J110: 94 | K110: 57
D111: хлеб бел.
D112: хлеб черн. | E112: Хлеб "Дарницкий" | F112: 80 | G112: 2.6 | H112: 0.4 | I112: 17 | J112: 164.8 | K112: 36
D115: итого | F115: =SUM(F106:F114) -> 380 | G115: =SUM(G106:G114) -> 24.16 | H115: =SUM(H106:H114) -> 35.3 | I115: =SUM(I106:I114) -> 132 | J115: =SUM(J106:J114) -> 908.4 | L115: =SUM(L112:L120) -> 
A116: =A93 -> 1 | B116: =B93 -> 3 | C116: Полдник | D116: кисломол.
D117: фрукты
D120: итого | F120: =SUM(F116:F119) -> 0 | G120: =SUM(G116:G119) -> 0 | H120: =SUM(H116:H119) -> 0 | I120: =SUM(I116:I119) -> 0 | J120: =SUM(J116:J119) -> 0 | L120: =SUM(L113:L119) -> 
A121: =A93 -> 1 | B121: =B93 -> 3 | C121: Ужин | D121: хлеб черн. | E121: Хлеб "Дарницкий" | F121: 80 | G121: 2.6 | H121: 0.4 | I121: 17 | J121: 164.8 | K121: 36
D122: масло слив. | E122: Масло слив. | F122: 15 | G122: 0.4 | H122: 62.5 | I122: 0.8 | J122: 205 | K122: 50
D123: 1 блюдо | E123: Суп молочный рожки | F123: 200/5 | G123: 8 | H123: 9 | I123: 25.2 | J123: 214.8 | K123: 6
D124: творог | E124: Творог со сметаной | F124: 200/10 | G124: 18 | H124: 9 | I124: 3 | J124: 164.3 | K124: 40
D125: гор.напиток | E125: Чай слад. | F125: 200 | G125: 0.1 | H125: 0 | I125: 9.9 | J125: 39.9 | K125: 51
D127: итого | F127: =SUM(F121:F126) -> 295 | G127: =SUM(G121:G126) -> 29.1 | H127: =SUM(H121:H126) -> 80.9 | I127: =SUM(I121:I126) -> 55.9 | J127: =SUM(J121:J126) -> 788.8 | L127: =SUM(L121:L129) -> 
A128: =A93 -> 1 | B128: =B93 -> 3 | C128: Ужин 2 | D128: кисломол. | E128: Ряженка | F128: 200 | G128: 12 | H128: 2 | I128: 8.4 | J128: 134 | K128: 58
D129: фрукты | E129: Яблоки св. | F129: 100 | G129: 0.6 | H129: 0.6 | I129: 14.3 | J129: 68.6 | K129: 60
D130: напиток
D134: итого | F134: =SUM(F128:F133) -> 300 | G134: =SUM(G128:G133) -> 12.6 | H134: =SUM(H128:H133) -> 2.6 | I134: =SUM(I128:I133) -> 22.7 | J134: =SUM(J128:J133) -> 202.6 | L134: =SUM(L128:L136) -> 
A135: =A93 -> 1 | B135: =B93 -> 3 | C135: Итого за день: | F135: =F100+F105+F115+F120+F127+F134 -> 1950 | G135: =G100+G105+G115+G120+G127+G134 -> 106.71 | H135: =H100+H105+H115+H120+H127+H134 -> 210 | I135: =I100+I105+I115+I120+I127+I134 -> 391.93 | J135: =J100+J105+J115+J120+J127+J134 -> 3494.7 | L135: =L100+L105+L115+L120+L127+L134 -> 
A136: 1 | B136: 4 | C136: Завтрак | D136: гор.блюдо | E136: Каша геркулес молочный | F136: 200 | G136: 9.7 | H136: 8.3 | I136: 36.8 | J136: 212 | K136: 23
D137: гор.напиток | E137: Кофейный напиток из цикория | F137: 200 | G137: 4.32 | H137: 4.6 | I137: 9.6 | J137: 135 | K137: 54
D138: хлеб | E138: Хлеб пшеничный | F138: 120 | G138: 3.1 | H138: 0.2 | I138: 20.1 | J138: 284.1 | K138: 37
D139: масло слив. | E139: Масло слив. | F139: 15 | G139: 0.4 | H139: 62.5 | I139: 0.8 | J139: 205 | K139: 50
D140: сыр | E140: Сыр | F140: 24 | G140: 4.3 | H140: 5.4 | I140: 0 | J140: 67.4 | K140: 48
D141: фрукты | E141: Апельсин | F141: 100 | G141: 1.4 | H141: 0.3 | I141: 8.1 | J141: 36 | K141: 61
D143: итого | F143: =SUM(F136:F142) -> 659 | G143: =SUM(G136:G142) -> 23.22 | H143: =SUM(H136:H142) -> 81.3 | I143: =SUM(I136:I142) -> 75.4 | J143: =SUM(J136:J142) -> 939.5 | L143: =SUM(L136:L142) -> 0
A144: =A136 -> 1 | B144: =B136 -> 4 | C144: Завтрак 2 | D144: фрукты | E144: Банан | F144: 100 | G144: 1.4 | H144: 0.3 | I144: 12.1 | J144: 96 | K144: 62
D145: хлеб бел. | E145: Хлеб пшеничный | F145: 160 | G145: 3.1 | H145: 0.2 | I145: 20.1 | J145: 378.8 | K145: 37
D146: напиток | E146: Компот из смеси сухофруктов | F146: 200 | G146: 4 | H146: 0.06 | I146: 35.2 | J146: 110 | K146: 53
D147: кондит.изд. | E147: Вафли | F147: 30 | G147: 1 | H147: 8.8 | I147: 18.8 | J147: 154.2 | K147: 46
D148: итого | F148: =SUM(F144:F147) -> 490 | G148: =SUM(G144:G147) -> 9.5 | H148: =SUM(H144:H147) -> 9.36 | I148: =SUM(I144:I147) -> 86.2 | J148: =SUM(J144:J147) -> 739 | L148: =SUM(L144:L153) -> 
A149: =A136 -> 1 | B149: =B136 -> 4 | C149: Обед | D149: закуска | E149: Салат из белокач.капусты | F149: 100 | G149: 2.1 | H149: 8.5 | I149: 10.5 | J149: 105.5 | K149: 31
D150: 1 блюдо | E150: Рассольник с перловкой со сметаной | F150: 250/10 | G150: 4.65 | H150: 10.01 | I150: 10.08 | J150: 322 | K150: 4
D151: 2 блюдо | E151: Картофельное пюре | F151: 200 | G151: 4.9 | H151: 7.2 | I151: 34 | J151: 207 | K151: 17
D152: гарнир | E152: Котлеты из говядины | F152: 100 | G152: 21 | H152: 22.2 | I152: 15 | J152: 217.2 | K152: 27
D153: напиток | E153: Сок | F153: 200 | G153: 0.8 | H153: 0 | I153: 23 | J153: 94 | K153: 57
D154: хлеб бел.
D155: хлеб черн. | E155: Хлеб "Дарницкий" | F155: 80 | G155: 2.6 | H155: 0.4 | I155: 17 | J155: 164.8 | K155: 36
D158: итого | F158: =SUM(F149:F157) -> 680 | G158: =SUM(G149:G157) -> 36.05 | H158: =SUM(H149:H157) -> 48.31 | I158: =SUM(I149:I157) -> 109.58 | J158: =SUM(J149:J157) -> 1110.5 | L158: =SUM(L155:L163) -> 
A159: =A136 -> 1 | B159: =B136 -> 4 | C159: Полдник | D159: кисломол.
D160: фрукты
D163: итого | F163: =SUM(F159:F162) -> 0 | G163: =SUM(G159:G162) -> 0 | H163: =SUM(H159:H162) -> 0 | I163: =SUM(I159:I162) -> 0 | J163: =SUM(J159:J162) -> 0 | L163: =SUM(L156:L162) -> 
A164: =A136 -> 1 | B164: =B136 -> 4 | C164: Ужин | D164: хлеб черн. | E164: Хлеб "Дарницкий" | F164: 80 | G164: 2.6 | H164: 0.4 | I164: 17 | J164: 164.8 | K164: 36
D165: масло слив. | E165: Масло слив. | F165: 15 | G165: 0.4 | H165: 62.5 | I165: 0.8 | J165: 205 | K165: 50
D166: гор.напиток | E166: Чай с мол. | F166: 200 | G166: 1.64 | H166: 1.64 | I166: 2.38 | J166: 30 | K166: 52
D167: 2 блюдо | E167: Плов из говядины | F167: 200 | G167: 18.8 | H167: 15.6 | I167: 18.6 | J167: 258 | K167: 11
D170: итого | F170: =SUM(F164:F169) -> 495 | G170: =SUM(G164:G169) -> 23.44 | H170: =SUM(H164:H169) -> 80.14 | I170: =SUM(I164:I169) -> 38.78 | J170: =SUM(J164:J169) -> 657.8 | L170: =SUM(L164:L172) -> 
A171: =A136 -> 1 | B171: =B136 -> 4 | C171: Ужин 2 | D171: кисломол. | E171: Ряженка | F171: 200 | G171: 12 | H171: 2 | I171: 8.4 | J171: 134 | K171: 58
D172: фрукты | E172: Яблоки св. | F172: 100 | G172: 0.6 | H172: 0.6 | I172: 14.3 | J172: 68.6 | K172: 60
D173: напиток
D177: итого | F177: =SUM(F171:F176) -> 300 | G177: =SUM(G171:G176) -> 12.6 | H177: =SUM(H171:H176) -> 2.6 | I177: =SUM(I171:I176) -> 22.7 | J177: =SUM(J171:J176) -> 202.6 | L177: =SUM(L171:L179) -> 
A178: =A136 -> 1 | B178: =B136 -> 4 | C178: Итого за день: | F178: =F143+F148+F158+F163+F170+F177 -> 2624 | G178: =G143+G148+G158+G163+G170+G177 -> 104.81 | H178: =H143+H148+H158+H163+H170+H177 -> 221.71 | I178: =I143+I148+I158+I163+I170+I177 -> 332.66 | J178: =J143+J148+J158+J163+J170+J177 -> 3649.4 | L178: =L143+L148+L158+L163+L170+L177 -> 
A179: 1 | B179: 5 | C179: Завтрак | D179: гор.блюдо | E179: Каша манная мол. | F179: 200/10 | G179: 6 | H179: 5 | I179: 30.8 | J179: 200 | K179: 20
D180: гор.напиток | E180: Чай слад. | F180: 200 | G180: 0.1 | H180: 0 | I180: 9.9 | J180: 39.9 | K180: 51
D181: хлеб | E181: Хлеб пшеничный | F181: 120 | G181: 3.1 | H181: 0.2 | I181: 20.1 | J181: 284.1 | K181: 37
D182: масло слив. | E182: Масло слив. | F182: 15 | G182: 0.4 | H182: 62.5 | I182: 0.8 | J182: 205 | K182: 50
D183: фрукты | E183: Апельсин | F183: 100 | G183: 1.4 | H183: 0.3 | I183: 8.1 | J183: 36 | K183: 61
D186: итого | F186: =SUM(F179:F185) -> 435 | G186: =SUM(G179:G185) -> 11 | H186: =SUM(H179:H185) -> 68 | I186: =SUM(I179:I185) -> 69.7 | J186: =SUM(J179:J185) -> 765 | L186: =SUM(L179:L185) -> 0
A187: =A179 -> 1 | B187: =B179 -> 5 | C187: Завтрак 2 | D187: фрукты | E187: Банан | F187: 100 | G187: 1.4 | H187: 0.3 | I187: 12.1 | J187: 96 | K187: 62
D188: напиток | E188: Компот из с/ф | F188: 200 | G188: 4 | H188: 0.06 | I188: 35.2 | J188: 110 | K188: 53
D189: выпечка | E189: Запеканка творожная | F189: 150/15 | G189: 20.44 | H189: 20 | I189: 29.6 | J189: 325 | K189: 41
D190: хлеб бел. | E190: Хлеб пшеничный | F190: 120 | G190: 3.1 | H190: 0.2 | I190: 20.1 | J190: 284.1 | K190: 37
D191: итого | F191: =SUM(F187:F190) -> 420 | G191: =SUM(G187:G190) -> 28.94 | H191: =SUM(H187:H190) -> 20.56 | I191: =SUM(I187:I190) -> 97 | J191: =SUM(J187:J190) -> 815.1 | L191: =SUM(L187:L196) -> 
A192: =A179 -> 1 | B192: =B179 -> 5 | C192: Обед | D192: закуска | E192: Свекла вар. дольками | F192: 100 | G192: 1.17 | H192: 6.96 | I192: 8.8 | J192: 60 | K192: 32
D193: 1 блюдо | E193: Суп крестьян с пшеном со смет | F193: 250/15 | G193: 10 | H193: 8.63 | I193: 7.9 | J193: 290 | K193: 65
D194: 2 блюдо | E194: Овощное рагу с мясом говяд. | F194: 200 | G194: 3.46 | H194: 6.26 | I194: 9.98 | J194: 310 | K194: 10
D195: гарнир
D196: напиток | E196: Сок | F196: 200 | G196: 0.8 | H196: 0 | I196: 23 | J196: 94 | K196: 57
D197: хлеб бел.
D198: хлеб черн. | E198: Хлеб "Дарницкий" | F198: 80 | G198: 2.6 | H198: 0.4 | I198: 17 | J198: 164.8 | K198: 36
D201: итого | F201: =SUM(F192:F200) -> 580 | G201: =SUM(G192:G200) -> 18.03 | H201: =SUM(H192:H200) -> 22.25 | I201: =SUM(I192:I200) -> 66.68 | J201: =SUM(J192:J200) -> 918.8 | L201: =SUM(L198:L206) -> 
A202: =A179 -> 1 | B202: =B179 -> 5 | C202: Полдник | D202: кисломол.
D203: фрукты
D206: итого | F206: =SUM(F202:F205) -> 0 | G206: =SUM(G202:G205) -> 0 | H206: =SUM(H202:H205) -> 0 | I206: =SUM(I202:I205) -> 0 | J206: =SUM(J202:J205) -> 0 | L206: =SUM(L199:L205) -> 
A207: =A179 -> 1 | B207: =B179 -> 5 | C207: Ужин | D207: хлеб черн. | E207: Хлеб "Дарницкий" | F207: 80 | G207: 2.6 | H207: 0.4 | I207: 17 | J207: 164.8 | K207: 36
D208: гор.напиток | E208: Какао с мол. | F208: 200 | G208: 4.62 | H208: 4.02 | I208: 43.8 | J208: 135 | K208: 63
D209: гарнир | E209: Рыба запеченная | F209: 100 | G209: 13.7 | H209: 6.2 | I209: 4.4 | J209: 153 | K209: 72
D210: 2 блюдо | E210: Гороховое пюре | F210: 200 | G210: 14.8 | H210: 12 | I210: 28.5 | J210: 200 | K210: 16
D211: масло слив. | E211: Масло слив. | F211: 15 | G211: 0.4 | H211: 62.5 | I211: 0.8 | J211: 205 | K211: 50
D213: итого | F213: =SUM(F207:F212) -> 595 | G213: =SUM(G207:G212) -> 36.12 | H213: =SUM(H207:H212) -> 85.12 | I213: =SUM(I207:I212) -> 94.5 | J213: =SUM(J207:J212) -> 857.8 | L213: =SUM(L207:L215) -> 
A214: =A179 -> 1 | B214: =B179 -> 5 | C214: Ужин 2 | D214: кисломол. | E214: Ряженка | F214: 200 | G214: 12 | H214: 2 | I214: 8.4 | J214: 134 | K214: 58
D215: фрукты | E215: Яблоки св. | F215: 100 | G215: 0.6 | H215: 0.6 | I215: 14.3 | J215: 68.6 | K215: 60
D216: напиток
D220: итого | F220: =SUM(F214:F219) -> 300 | G220: =SUM(G214:G219) -> 12.6 | H220: =SUM(H214:H219) -> 2.6 | I220: =SUM(I214:I219) -> 22.7 | J220: =SUM(J214:J219) -> 202.6 | L220: =SUM(L214:L222) -> 
A221: =A179 -> 1 | B221: =B179 -> 5 | C221: Итого за день: | F221: =F186+F191+F201+F206+F213+F220 -> 2330 | G221: =G186+G191+G201+G206+G213+G220 -> 106.69 | H221: =H186+H191+H201+H206+H213+H220 -> 198.53 | I221: =I186+I191+I201+I206+I213+I220 -> 350.58 | J221: =J186+J191+J201+J206+J213+J220 -> 3559.3 | L221: =L186+L191+L201+L206+L213+L220 -> 
A222: 1 | B222: 6 | C222: Завтрак | D222: гор.блюдо | E222: Каша пшенич молочная | F222: 200/8 | G222: 10.8 | H222: 10.9 | I222: 57.8 | J222: 367.9 | K222: 14
D223: гор.напиток | E223: Какао с молоком | F223: 200 | G223: 4.62 | H223: 4.02 | I223: 43.8 | J223: 135 | K223: 63
D224: хлеб бел. | E224: Хлеб пшеничный | F224: 120 | G224: 3.1 | H224: 0.2 | I224: 20.1 | J224: 284.1 | K224: 37
D225: кондит.изд. | E225: Печенье | F225: 30 | G225: 3 | H225: 0.3 | I225: 8.1 | J225: 166.8 | K225: 47
D226: сыр | E226: Сыр | F226: 24 | G226: 4.3 | H226: 5.4 | I226: 0 | J226: 67.4 | K226: 48
E227: Апельсин | F227: 100 | G227: 1.4 | H227: 0.3 | I227: 8.1 | J227: 36 | K227: 61
D228: масло слив. | E228: Масло слив. | F228: 10 | G228: 0.4 | H228: 62.5 | I228: 0.8 | J228: 105 | K228: 50
D229: итого | F229: =SUM(F222:F228) -> 484 | G229: =SUM(G222:G228) -> 27.62 | H229: =SUM(H222:H228) -> 83.62 | I229: =SUM(I222:I228) -> 138.7 | J229: =SUM(J222:J228) -> 1162.2 | L229: =SUM(L222:L228) -> 0
A230: =A222 -> 1 | B230: =B222 -> 6 | C230: Завтрак 2 | D230: фрукты
D234: итого | F234: =SUM(F230:F233) -> 0 | G234: =SUM(G230:G233) -> 0 | H234: =SUM(H230:H233) -> 0 | I234: =SUM(I230:I233) -> 0 | J234: =SUM(J230:J233) -> 0 | L234: =SUM(L230:L239) -> 
A235: =A222 -> 1 | B235: =B222 -> 6 | C235: Обед | D235: закуска | E235: Салат морковный | F235: 100 | G235: 1.16 | H235: 8.3 | I235: 14.6 | J235: 98.8 | K235: 35
D236: 1 блюдо | E236: Щи к/м со сметаной | F236: 250/15 | G236: 9.1 | H236: 10.5 | I236: 15.9 | J236: 194.9 | K236: 1
D237: 2 блюдо | E237: Макароны отварные | F237: 200/10 | G237: 7.6 | H237: 9.2 | I237: 48.8 | J237: 150.7 | K237: 18
D238: гарнир | E238: Гуляш из говядины | F238: 100 | G238: 10 | H238: 15.3 | I238: 5.5 | J238: 132.4 | K238: 25
D239: напиток | E239: Компот из с/ф | F239: 200 | G239: 4 | H239: 0.06 | I239: 35.2 | J239: 110 | K239: 53
D240: хлеб бел.
D241: хлеб.черн. | E241: Хлеб "Дарницкий" | F241: 80 | G241: 2.6 | H241: 0.4 | I241: 17 | J241: 164.8 | K241: 36
D242: фрукты | E242: Банан | F242: 100 | G242: 1 | H242: 0 | I242: 12 | J242: 96 | K242: 62
D244: итого | F244: 1030 | G244: =SUM(G235:G243) -> 35.86 | H244: =SUM(H235:H243) -> 44.06 | I244: =SUM(I235:I243) -> 149.1 | J244: =SUM(J235:J243) -> 947.6 | L244: =SUM(L241:L249) -> 
A245: =A222 -> 1 | B245: =B222 -> 6 | C245: Полдник | D245: кисломол.
D246: фрукты
D249: итого | F249: =SUM(F245:F248) -> 0 | G249: =SUM(G245:G248) -> 0 | H249: =SUM(H245:H248) -> 0 | I249: =SUM(I245:I248) -> 0 | J249: =SUM(J245:J248) -> 0 | L249: =SUM(L242:L248) -> 
A250: =A222 -> 1 | B250: =B222 -> 6 | C250: Ужин | D250: 2 блюдо | E250: Каша рис. мол. | F250: 200 | G250: 5.8 | H250: 9.2 | I250: 42.6 | J250: 277.5 | K250: 21
D251: гарнир | E251: Котлеты из говядины | F251: 100 | G251: 21 | H251: 22.2 | I251: 15 | J251: 217.2 | K251: 27
D252: хлеб.черн. | E252: Хлеб "Дарницкий" | F252: 80 | G252: 2.6 | H252: 0.4 | I252: 17 | J252: 164.8 | K252: 36
D253: масло слив. | E253: Масло слив. | F253: 15 | G253: 0.4 | H253: 62.5 | I253: 0.8 | J253: 205 | K253: 50
D254: гор.напиток | E254: Чай слад. | F254: 200 | G254: 0.1 | H254: 0 | I254: 9.9 | J254: 39.9 | K254: 51
D256: итого | F256: =SUM(F250:F255) -> 595 | G256: =SUM(G250:G255) -> 29.9 | H256: =SUM(H250:H255) -> 94.3 | I256: =SUM(I250:I255) -> 85.3 | J256: =SUM(J250:J255) -> 904.4 | L256: =SUM(L250:L258) -> 
... 275 more rows
